fUST/lending_fUST_20240829
["ID","MTS","AMOUNT","RATE_DAILY","PERIOD"]
[336482892,1724873441297,-500.0,0.00019334,2]
[336482893,1724873441310,-500.0,0.00019334,2]
[336482894,1724873441320,-500.0,0.00019334,2]
[336482895,1724873441335,-500.0,0.00019334,2]
[336482896,1724873441346,-500.0,0.00019334,2]
[336482897,1724873441355,-500.0,0.00019334,2]
[336482898,1724873441365,-744.0,0.00019334,2]
[336482899,1724873441374,-608.85,0.00019334,2]
[336482900,1724873441384,-500.0,0.00019334,2]
[336482901,1724873441394,-500.0,0.00019334,2]
[336482902,1724873441409,-500.0,0.00019334,2]
[336482903,1724873441419,-500.0,0.00019334,2]
[336482904,1724873441428,-500.0,0.00019334,2]
[336482905,1724873441438,-500.0,0.00019334,2]
[336482906,1724873441447,-500.0,0.00019334,2]
[336482907,1724873441457,-589.18,0.00019334,2]
[336482908,1724873441467,-500.0,0.00019334,2]
[336482909,1724873441476,-500.0,0.00019334,2]
[336482910,1724873441486,-500.0,0.00019334,2]
[336482911,1724873441496,-500.0,0.00019334,2]
[336482912,1724873441507,-500.0,0.00019334,2]
[336482913,1724873441517,-500.0,0.00019334,2]
[336482914,1724873441527,-500.0,0.00019334,2]
[336482915,1724873441536,-500.0,0.00019334,2]
[336482916,1724873441546,-500.0,0.00019334,2]
[336482917,1724873441555,-500.0,0.00019334,2]
[336482918,1724873441565,-500.0,0.00019334,2]
[336482919,1724873441575,-504.15252587,0.00019334,2]
[336482920,1724873441584,-500.0,0.00019334,2]
[336482921,1724873441594,-500.0,0.00019334,2]
[336482922,1724873441603,-505.14223805,0.00019334,2]
[336482923,1724873441613,-500.0,0.00019334,2]
[336482924,1724873441622,-500.0,0.00019334,2]
[336482925,1724873441631,-500.0,0.00019334,2]
[336482926,1724873441641,-529.59851906,0.00019334,2]
[336482927,1724873441652,-500.0,0.00019334,2]
[336482928,1724873441662,-500.0,0.00019334,2]
[336482929,1724873441671,-500.0,0.00019334,2]
[336482930,1724873441680,-500.29721785,0.00019334,2]
[336482931,1724873441689,-500.0,0.00019334,2]
[336482932,1724873441699,-500.0,0.00019334,2]
[336482933,1724873441708,-258.84085266,0.00019334,2]
[336482934,1724873441717,-500.0,0.00019334,2]
[336482935,1724873441726,-500.0,0.00019334,2]
[336482936,1724873441736,-500.0,0.00019334,2]
[336482937,1724873441746,-500.0,0.00019334,2]
[336482938,1724873441755,-526.32910665,0.00019334,2]
[336482939,1724873441765,-500.0,0.00019334,2]
[336482940,1724873441775,-500.0,0.00019334,2]
[336482941,1724873441785,-500.0,0.00019334,2]
[336482942,1724873441793,-500.0,0.00019334,2]
[336482943,1724873441802,-500.0,0.00019334,2]
[336482944,1724873441812,-500.0,0.00019334,2]
[336482945,1724873441821,-500.0,0.00019334,2]
[336482946,1724873441835,-500.0,0.00019334,2]
[336482947,1724873441845,-316.14919374,0.00019334,2]
[336482948,1724873441855,-500.0,0.00019334,2]
[336482949,1724873441865,-500.0,0.00019334,2]
[336482950,1724873441874,-500.0,0.00019334,2]
[336482951,1724873441884,-500.0,0.00019334,2]
[336482952,1724873441894,-500.0,0.00019334,2]
[336482953,1724873441905,-500.0,0.00019334,2]
[336482954,1724873441915,-500.0,0.00019334,2]
[336482955,1724873441924,-500.0,0.00019334,2]
[336482956,1724873441934,-500.0,0.00019334,2]
[336482957,1724873441943,-500.0,0.00019334,2]
[336482958,1724873441953,-500.0,0.00019334,2]
[336482959,1724873441962,-500.0,0.00019334,2]
[336482960,1724873441971,-500.0,0.00019334,2]
[336482961,1724873441981,-500.0,0.00019334,2]
[336482962,1724873441991,-718.35,0.00019334,2]
[336482963,1724873442000,-185.507539,0.00019335,2]
[336482964,1724873442010,-306.101845,0.00019335,2]
[336482965,1724873442020,-500.0,0.00019335,2]
[336482966,1724873442029,-306.101845,0.00019335,2]
[336482967,1724873442039,-500.0,0.00019335,2]
[336482968,1724873442048,-241.201416,0.00019335,2]
[336482969,1724873442058,-167.976653,0.00019335,2]
[336482970,1724873442068,-167.976653,0.00019335,2]
[336482971,1724873442078,-500.0,0.00019335,2]
[336482972,1724873442089,-151.0,0.00019335,2]
[336482973,1724873442099,-500.0,0.00019335,2]
[336482974,1724873442108,-577.92,0.00019335,2]
[336482975,1724873442118,-500.0,0.00019335,2]
[336482976,1724873442128,-151.0,0.00019336,2]
[336482977,1724873442137,-151.0,0.00019336,2]
[336482978,1724873442149,-151.0,0.00019336,2]
[336482979,1724873442161,-190.891163,0.00019336,2]
[336482980,1724873442171,-190.891163,0.00019336,2]
[336482981,1724873442181,-543.210374,0.00019336,2]
[336482982,1724873442191,-543.210374,0.00019336,2]
[336482983,1724873442201,-286.256871,0.00019336,2]
[336482984,1724873442210,-151.0,0.00019336,2]
[336482985,1724873442220,-157.79756,0.00019336,2]
[336482986,1724873442229,-500.0,0.00019342,2]
[336482987,1724873442239,-151.0,0.00019343,2]
[336482988,1724873442249,-151.0,0.00019343,2]
[336482989,1724873442259,-166.666667,0.00019358,2]
[336482990,1724873442269,-10168.0380117,0.0001939,2]
[336482991,1724873442279,-19948.16037367,0.000194,2]
[336482992,1724873442288,-166.666667,0.00019427,2]
[336482993,1724873442298,-151.0,0.000195,2]
[336482994,1724873442307,-162.16111,0.000195,2]
[336482995,1724873442318,-162.16111,0.000195,2]
[336482996,1724873442327,-2452.0155243,0.00019506,2]
[336482997,1724873442337,-12144.33436848,0.00019506,2]
[336482998,1724873442346,-3000.0,0.00019507,2]
[336482999,1724873442356,-222.200896,0.00019588,2]
[336483000,1724873442366,-222.200896,0.00019588,2]
[336483001,1724873442376,-10168.0380117,0.00019595,2]
[336483002,1724873442387,-562.61,0.00019596,2]
[336483003,1724873442397,-10168.0380117,0.00019596,2]
[336483004,1724873442407,-251.597378,0.00019597,2]
[336483005,1724873442417,-405.72554,0.00019597,2]
[336483006,1724873442427,-405.72554,0.00019597,2]
[336483007,1724873442436,-280.152415,0.00019597,2]
[336483008,1724873442446,-280.152415,0.00019597,2]
[336483009,1724873442460,-192.566226,0.00019597,2]
[336483010,1724873442470,-306.101845,0.00019597,2]
[336483011,1724873442481,-306.101845,0.00019597,2]
[336483012,1724873442490,-167.976653,0.00019597,2]
[336483013,1724873442500,-167.976653,0.00019597,2]
[336483014,1724873442509,-151.0,0.00019597,2]
[336483015,1724873442519,-500.0,0.00019597,2]
[336483016,1724873442528,-500.0,0.00019597,2]
[336483017,1724873442538,-500.0,0.00019597,2]
[336483018,1724873442547,-500.0,0.00019597,2]
[336483019,1724873442557,-10168.0380117,0.00019598,2]
[336483020,1724873442567,-151.0,0.00019598,2]
[336483021,1724873442576,-151.0,0.00019598,2]
[336483022,1724873442586,-151.0,0.00019598,2]
[336483023,1724873442595,-151.0,0.00019598,2]
[336483024,1724873442604,-151.0,0.00019598,2]
[336483025,1724873442613,-151.0,0.00019598,2]
[336483026,1724873442623,-151.0,0.00019598,2]
[336483027,1724873442633,-151.0,0.00019598,2]
[336483028,1724873442642,-158.34387,0.00019598,2]
[336483029,1724873442653,-190.891163,0.00019598,2]
[336483030,1724873442663,-151.0,0.00019598,2]
[336483031,1724873442672,-190.891163,0.00019598,2]
[336483032,1724873442682,-543.210374,0.00019598,2]
[336483033,1724873442692,-543.210374,0.00019598,2]
[336483034,1724873442701,-151.0,0.00019598,2]
[336483035,1724873442711,-306.101845,0.00019599,2]
[336483036,1724873442721,-306.101845,0.00019599,2]
[336483037,1724873442730,-167.976653,0.00019599,2]
[336483038,1724873442739,-167.976653,0.00019599,2]
[336483039,1724873442751,-151.0,0.00019599,2]
[336483040,1724873442763,-172.416327,0.000196,2]
[336483041,1724873442772,-172.416327,0.000196,2]
[336483042,1724873442781,-151.0,0.000196,2]
[336483043,1724873442791,-162.16111,0.000196,2]
[336483044,1724873442801,-162.16111,0.000196,2]
[336483045,1724873442811,-1120.64,0.00019605,2]
[336483046,1724873442820,-768.23,0.00019605,2]
[336483047,1724873442830,-500.0,0.00019605,2]
[336483048,1724873442839,-1543.42,0.00019605,2]
[336483049,1724873442849,-500.0,0.00019605,2]
[336483050,1724873442859,-500.0,0.00019605,2]
[336483051,1724873442869,-500.0,0.00019605,2]
[336483052,1724873442878,-500.0,0.00019605,2]
[336483053,1724873442888,-1151.87,0.00019605,2]
[336483054,1724873442898,-500.0,0.00019605,2]
[336483055,1724873442907,-677.56,0.00019605,2]
[336483056,1724873442918,-500.0,0.00019605,2]
[336483057,1724873442929,-500.0,0.00019605,2]
[336483058,1724873442939,-500.0,0.00019605,2]
[336483059,1724873442952,-965.27,0.00019605,2]
[336483060,1724873442963,-500.0,0.00019605,2]
[336483061,1724873442973,-500.0,0.00019605,2]
[336483062,1724873442983,-5379.39,0.00019605,2]
[336483063,1724873442992,-500.0,0.00019605,2]
[336483064,1724873443002,-500.0,0.00019605,2]
[336483065,1724873443011,-846.6,0.00019605,2]
[336483066,1724873443021,-500.0,0.00019605,2]
[336483067,1724873443031,-698.36,0.00019605,2]
[336483068,1724873443041,-500.0,0.00019605,2]
[336483069,1724873443051,-500.0,0.00019606,2]
[336483070,1724873443060,-500.0,0.00019606,2]
[336483071,1724873443070,-500.0,0.00019606,2]
[336483072,1724873443083,-500.0,0.00019606,2]
[336483073,1724873443092,-500.0,0.00019606,2]
[336483074,1724873443101,-500.0,0.00019606,2]
[336483076,1724873443111,-500.0,0.00019606,2]
[336483077,1724873443122,-500.0,0.00019606,2]
[336483078,1724873443132,-500.0,0.00019606,2]
[336483079,1724873443141,-500.0,0.00019606,2]
[336483080,1724873443152,-531.36,0.00019606,2]
[336483081,1724873443163,-500.0,0.00019606,2]
[336483082,1724873443174,-253.3,0.00019606,2]
[336483083,1724873443184,-606.72,0.00019606,2]
[336483084,1724873443193,-500.0,0.00019606,2]
[336483085,1724873443203,-604.6,0.00019606,2]
[336483086,1724873443213,-500.0,0.00019606,2]
[336483088,1724873443223,-617.88,0.00019606,2]
[336483089,1724873443233,-500.0,0.00019606,2]
[336483090,1724873443243,-500.0,0.00019606,2]
[336483091,1724873443254,-668.39,0.00019606,2]
[336483092,1724873443264,-500.0,0.00019606,2]
[336483093,1724873443274,-1062.16,0.00019606,2]
[336483094,1724873443283,-500.0,0.00019606,2]
[336483095,1724873443292,-500.0,0.00019606,2]
[336483096,1724873443300,-500.0,0.00019606,2]
[336483097,1724873443310,-1158.57,0.00019606,2]
[336483101,1724873443524,-500.0,0.00019606,2]
[336483102,1724873443535,-3725.12,0.00019606,2]
[336483103,1724873443544,-500.0,0.00019606,2]
[336483104,1724873443554,-500.0,0.00019606,2]
[336483105,1724873443564,-500.0,0.00019606,2]
[336483106,1724873443573,-500.0,0.00019606,2]
[336483107,1724873443583,-500.0,0.00019606,2]
[336483108,1724873443592,-500.0,0.00019606,2]
[336483109,1724873443602,-500.0,0.00019606,2]
[336483110,1724873443612,-500.0,0.00019606,2]
[336483111,1724873443622,-500.0,0.00019606,2]
[336483112,1724873443632,-500.0,0.00019606,2]
[336483113,1724873443642,-500.0,0.00019606,2]
[336483114,1724873443653,-1085.53,0.00019606,2]
[336483115,1724873443662,-500.0,0.00019606,2]
[336483116,1724873443672,-784.98,0.00019606,2]
[336483117,1724873443682,-575.72,0.00019606,2]
[336483118,1724873443691,-500.0,0.00019606,2]
[336483119,1724873443700,-500.0,0.00019606,2]
[336483120,1724873443710,-524.05,0.00019606,2]
[336483121,1724873443720,-500.0,0.00019606,2]
[336483122,1724873443730,-588.83,0.00019606,2]
[336483123,1724873443739,-500.0,0.00019606,2]
[336483124,1724873443748,-500.0,0.00019606,2]
[336483125,1724873443757,-500.0,0.00019606,2]
[336483126,1724873443768,-500.0,0.00019606,2]
[336483127,1724873443778,-500.0,0.00019606,2]
[336483128,1724873443787,-500.0,0.00019606,2]
[336483129,1724873443797,-500.0,0.00019606,2]
[336483130,1724873443806,-500.0,0.00019606,2]
[336483131,1724873443817,-500.0,0.00019606,2]
[336483132,1724873443826,-500.0,0.00019606,2]
[336483133,1724873443835,-500.0,0.00019606,2]
[336483134,1724873443845,-500.0,0.00019606,2]
[336483135,1724873443855,-500.0,0.00019606,2]
[336483136,1724873443865,-500.0,0.00019606,2]
[336483137,1724873443874,-500.0,0.00019606,2]
[336483138,1724873443884,-343.24529879,0.00019606,2]
[336483144,1724873444016,-156.75470121,0.00019606,2]
[336483145,1724873444026,-500.0,0.00019606,2]
[336483146,1724873444036,-500.0,0.00019606,2]
[336483147,1724873444046,-500.0,0.00019606,2]
[336483148,1724873444055,-500.0,0.00019606,2]
[336483149,1724873444065,-500.0,0.00019606,2]
[336483150,1724873444076,-500.0,0.00019606,2]
[336483151,1724873444088,-500.0,0.00019606,2]
[336483152,1724873444099,-500.0,0.00019606,2]
[336483153,1724873444109,-895.92,0.00019606,2]
[336483154,1724873444119,-500.0,0.00019606,2]
[336483155,1724873444129,-500.0,0.00019606,2]
[336483156,1724873444140,-500.0,0.00019606,2]
[336483157,1724873444152,-500.0,0.00019606,2]
[336483158,1724873444163,-864.12,0.00019606,2]
[336483159,1724873444173,-500.0,0.00019606,2]
[336483160,1724873444183,-546.4,0.00019606,2]
[336483161,1724873444193,-500.0,0.00019606,2]
[336483162,1724873444203,-500.0,0.00019606,2]
[336483163,1724873444212,-582.77,0.00019606,2]
[336483164,1724873444222,-500.0,0.00019606,2]
[336483165,1724873444232,-500.0,0.00019606,2]
[336483166,1724873444242,-620.96,0.00019606,2]
[336483167,1724873444252,-500.0,0.00019606,2]
[336483168,1724873444263,-500.0,0.00019606,2]
[336483169,1724873444274,-500.0,0.00019606,2]
[336483170,1724873444284,-500.0,0.00019606,2]
[336483171,1724873444294,-500.0,0.00019606,2]
[336483172,1724873444305,-544.53935513,0.00019606,2]
[336483173,1724873444315,-500.0,0.00019606,2]
[336483174,1724873444325,-500.0,0.00019606,2]
[336483175,1724873444334,-500.0,0.00019606,2]
[336483176,1724873444344,-500.0,0.00019606,2]
[336483177,1724873444355,-222.200896,0.00019607,2]
[336483178,1724873444365,-222.200896,0.00019607,2]
[336483179,1724873444375,-151.0,0.00019607,2]
[336483180,1724873444385,-151.0,0.00019607,2]
[336483181,1724873444394,-151.0,0.00019607,2]
[336483182,1724873444408,-280.152415,0.00019607,2]
[336483183,1724873444419,-280.152415,0.00019607,2]
[336483184,1724873444429,-151.0,0.00019607,2]
[336483185,1724873444439,-151.0,0.00019607,2]
[336483186,1724873444450,-151.0,0.00019607,2]
[336483187,1724873444462,-151.0,0.00019607,2]
[336483188,1724873444472,-190.891163,0.00019607,2]
[336483189,1724873444482,-151.0,0.00019607,2]
[336483190,1724873444491,-190.891163,0.00019607,2]
[336483191,1724873444502,-543.210374,0.00019607,2]
[336483192,1724873444511,-543.210374,0.00019607,2]
[336483193,1724873444522,-151.0,0.00019607,2]
[336483194,1724873444532,-306.101845,0.00019607,2]
[336483195,1724873444542,-306.101845,0.00019607,2]
[336483197,1724873444552,-167.976653,0.00019607,2]
[336483198,1724873444562,-167.976653,0.00019607,2]
[336483199,1724873444572,-151.0,0.00019607,2]
[336483200,1724873444581,-500.0,0.00019607,2]
[336483201,1724873444591,-500.0,0.00019607,2]
[336483202,1724873444601,-500.0,0.00019607,2]
[336483203,1724873444611,-500.0,0.00019607,2]
[336483204,1724873444622,-500.0,0.00019607,2]
[336483205,1724873444633,-500.0,0.00019607,2]
[336483206,1724873444644,-551.35,0.00019607,2]
[336483207,1724873444657,-500.0,0.00019607,2]
[336483208,1724873444667,-180.56,0.00019607,2]
[336483209,1724873444678,-500.0,0.00019607,2]
[336483210,1724873444687,-526.03835976,0.00019607,2]
[336483211,1724873444697,-500.0,0.00019607,2]
[336483212,1724873444707,-500.0,0.00019607,2]
[336483213,1724873444717,-500.0,0.00019607,2]
[336483214,1724873444727,-500.0,0.00019607,2]
[336483215,1724873444736,-500.0,0.00019607,2]
[336483216,1724873444746,-500.0,0.00019607,2]
[336483217,1724873444757,-500.0,0.00019607,2]
[336483218,1724873444767,-586.22,0.00019607,2]
[336483219,1724873444779,-500.0,0.00019607,2]
[336483220,1724873444789,-500.0,0.00019607,2]
[336483221,1724873444800,-500.0,0.00019607,2]
[336483222,1724873444811,-500.0,0.00019607,2]
[336483223,1724873444822,-500.0,0.00019607,2]
[336483224,1724873444832,-500.0,0.00019607,2]
[336483225,1724873444841,-500.0,0.00019607,2]
[336483226,1724873444852,-500.0,0.00019607,2]
[336483227,1724873444861,-500.0,0.00019607,2]
[336483228,1724873444870,-163.852575,0.00019608,2]
[336483229,1724873444881,-151.0,0.00019608,2]
[336483230,1724873444890,-151.0,0.00019608,2]
[336483231,1724873444903,-151.0,0.00019608,2]
[336483232,1724873444914,-151.0,0.00019608,2]
[336483233,1724873444924,-172.416327,0.00019608,2]
[336483234,1724873444933,-172.416327,0.00019608,2]
[336483235,1724873444943,-151.0,0.00019608,2]
[336483236,1724873444953,-162.16111,0.00019608,2]
[336483237,1724873444962,-162.16111,0.00019608,2]
[336483238,1724873444972,-405.72554,0.00019608,2]
[336483239,1724873444982,-405.72554,0.00019608,2]
[336483240,1724873444992,-405.72554,0.00019608,2]
[336483241,1724873445002,-405.72554,0.00019608,2]
[336483242,1724873445012,-222.200896,0.00019608,2]
[336483243,1724873445023,-222.200896,0.00019608,2]
[336483244,1724873445033,-166.31838847,0.00019608,2]
[336483245,1724873445043,-500.0,0.00019608,2]
[336483246,1724873445053,-430.34723535,0.00019608,2]
[336483247,1724873445063,-500.0,0.00019608,2]
[336483248,1724873445075,-500.0,0.00019608,2]
[336483249,1724873445088,-151.0,0.00019608,2]
[336483250,1724873445098,-151.0,0.00019608,2]
[336483251,1724873445109,-151.0,0.00019608,2]
[336483252,1724873445121,-235.440394,0.00019608,2]
[336483253,1724873445131,-151.0,0.00019608,2]
[336483254,1724873445142,-204.537856,0.00019608,2]
[336483255,1724873445156,-500.0,0.00019608,2]
[336483256,1724873445167,-280.152415,0.00019608,2]
[336483257,1724873445176,-280.152415,0.00019608,2]
[336483258,1724873445186,-280.152415,0.00019608,2]
[336483259,1724873445196,-280.152415,0.00019608,2]
[336483260,1724873445206,-151.0,0.00019608,2]
[336483261,1724873445215,-158.14,0.00019608,2]
[336483262,1724873445225,-151.0,0.00019608,2]
[336483263,1724873445235,-199.341401,0.00019608,2]
[336483264,1724873445244,-151.0,0.00019608,2]
[336483265,1724873445254,-151.0,0.00019608,2]
[336483266,1724873445264,-500.0,0.00019608,2]
[336483267,1724873445274,-269.22,0.00019608,2]
[336483268,1724873445284,-500.0,0.00019608,2]
[336483269,1724873445293,-151.0,0.00019608,2]
[336483270,1724873445303,-151.0,0.00019608,2]
[336483271,1724873445313,-565.86986178,0.00019608,2]
[336483272,1724873445323,-500.0,0.00019608,2]
[336483273,1724873445333,-500.0,0.00019608,2]
[336483274,1724873445343,-190.891163,0.00019608,2]
[336483275,1724873445354,-190.891163,0.00019608,2]
[336483276,1724873445364,-151.0,0.00019608,2]
[336483277,1724873445374,-190.891163,0.00019608,2]
[336483278,1724873445383,-190.891163,0.00019608,2]
[336483279,1724873445393,-543.210374,0.00019608,2]
[336483280,1724873445404,-543.210374,0.00019608,2]
[336483281,1724873445413,-543.210374,0.00019608,2]
[336483282,1724873445423,-543.210374,0.00019608,2]
[336483283,1724873445433,-500.0,0.00019608,2]
[336483284,1724873445444,-500.0,0.00019608,2]
[336483285,1724873445455,-500.0,0.00019608,2]
[336483286,1724873445465,-151.0,0.00019608,2]
[336483287,1724873445475,-151.0,0.00019608,2]
[336483288,1724873445484,-150.91279648,0.00019608,2]
[336483289,1724873445495,-500.0,0.00019608,2]
[336483290,1724873445504,-306.101845,0.00019608,2]
[336483291,1724873445516,-306.101845,0.00019608,2]
[336483292,1724873445527,-306.101845,0.00019608,2]
[336483293,1724873445538,-306.101845,0.00019608,2]
[336483294,1724873445548,-500.0,0.00019608,2]
[336483295,1724873445557,-500.0,0.00019608,2]
[336483296,1724873445568,-167.976653,0.00019608,2]
[336483297,1724873445579,-167.976653,0.00019608,2]
[336483298,1724873445589,-167.976653,0.00019608,2]
[336483299,1724873445598,-167.976653,0.00019608,2]
[336483300,1724873445607,-151.0,0.00019608,2]
[336483301,1724873445618,-151.0,0.00019608,2]
[336483302,1724873445628,-500.0,0.00019608,2]
[336483303,1724873445638,-500.0,0.00019608,2]
[336483304,1724873445648,-500.0,0.00019608,2]
[336483305,1724873445657,-744.0,0.00019608,2]
[336483306,1724873445666,-608.85,0.00019608,2]
[336483307,1724873445676,-500.0,0.00019608,2]
[336483308,1724873445686,-500.0,0.00019608,2]
[336483309,1724873445697,-500.0,0.00019608,2]
[336483310,1724873445707,-500.0,0.00019608,2]
[336483311,1724873445717,-500.0,0.00019608,2]
[336483312,1724873445727,-500.0,0.00019608,2]
[336483313,1724873445736,-500.0,0.00019608,2]
[336483314,1724873445747,-589.18,0.00019608,2]
[336483315,1724873445758,-500.0,0.00019608,2]
[336483316,1724873445768,-500.0,0.00019608,2]
[336483317,1724873445778,-500.0,0.00019608,2]
[336483318,1724873445788,-500.0,0.00019608,2]
[336483319,1724873445798,-500.0,0.00019608,2]
[336483320,1724873445808,-500.0,0.00019608,2]
[336483321,1724873445818,-500.0,0.00019608,2]
[336483322,1724873445828,-500.0,0.00019608,2]
[336483323,1724873445839,-500.0,0.00019608,2]
[336483324,1724873445849,-541.27,0.00019608,2]
[336483325,1724873445858,-500.0,0.00019608,2]
[336483326,1724873445867,-500.0,0.00019608,2]
[336483327,1724873445877,-500.0,0.00019608,2]
[336483328,1724873445887,-500.0,0.00019608,2]
[336483329,1724873445896,-500.0,0.00019608,2]
[336483330,1724873445907,-500.0,0.00019608,2]
[336483331,1724873445916,-500.0,0.00019608,2]
[336483332,1724873445925,-500.0,0.00019608,2]
[336483333,1724873445937,-311.50971906,0.00019608,2]
[336483334,1724873445947,-500.0,0.00019608,2]
[336483335,1724873445956,-500.0,0.00019608,2]
[336483336,1724873445967,-500.0,0.00019608,2]
[336483337,1724873445977,-718.35,0.00019608,2]
[336483338,1724873445986,-219.538881,0.00019609,2]
[336483339,1724873445995,-162.16111,0.00019609,2]
[336483340,1724873446004,-162.16111,0.00019609,2]
[336483341,1724873446015,-222.200896,0.00019609,2]
[336483342,1724873446024,-222.200896,0.00019609,2]
[336483343,1724873446034,-151.0,0.00019609,2]
[336483344,1724873446044,-280.152415,0.00019609,2]
[336483345,1724873446054,-280.152415,0.00019609,2]
[336483346,1724873446065,-151.0,0.00019609,2]
[336483347,1724873446077,-151.0,0.00019609,2]
[336483348,1724873446090,-151.0,0.00019609,2]
[336483349,1724873446099,-190.891163,0.00019609,2]
[336483350,1724873446110,-190.891163,0.00019609,2]
[336483351,1724873446121,-543.210374,0.00019609,2]
[336483352,1724873446130,-543.210374,0.00019609,2]
[336483353,1724873446140,-151.0,0.00019609,2]
[336483354,1724873446151,-500.0,0.00019609,2]
[336483355,1724873446162,-306.101845,0.00019609,2]
[336483356,1724873446172,-306.101845,0.00019609,2]
[336483357,1724873446182,-500.0,0.00019609,2]
[336483358,1724873446191,-167.976653,0.00019609,2]
[336483359,1724873446201,-167.976653,0.00019609,2]
[336483360,1724873446210,-500.0,0.00019609,2]
[336483361,1724873446220,-151.0,0.00019609,2]
[336483362,1724873446231,-500.0,0.00019609,2]
[336483363,1724873446242,-500.0,0.00019609,2]
[336483364,1724873446254,-151.0,0.0001961,2]
[336483365,1724873446263,-151.0,0.0001961,2]
[336483366,1724873446273,-151.0,0.0001961,2]
[336483368,1724873446282,-151.0,0.0001961,2]
[336483369,1724873446292,-172.416327,0.0001961,2]
[336483370,1724873446303,-172.416327,0.0001961,2]
[336483371,1724873446313,-405.72554,0.0001961,2]
[336483372,1724873446323,-405.72554,0.0001961,2]
[336483373,1724873446332,-280.152415,0.0001961,2]
[336483374,1724873446342,-280.152415,0.0001961,2]
[336483375,1724873446352,-151.0,0.0001961,2]
[336483376,1724873446362,-190.891163,0.0001961,2]
[336483377,1724873446371,-190.891163,0.0001961,2]
[336483378,1724873446382,-543.210374,0.0001961,2]
[336483379,1724873446392,-543.210374,0.0001961,2]
[336483380,1724873446405,-151.0,0.0001961,2]
[336483381,1724873446414,-151.0,0.00019617,2]
[336483382,1724873446425,-222.200896,0.00019617,2]
[336483383,1724873446434,-222.200896,0.00019617,2]
[336483384,1724873446445,-500.0,0.00019618,2]
[336483385,1724873446455,-4283.95805139,0.00019619,2]
[336483386,1724873446466,-172.416327,0.00019619,2]
[336483387,1724873446476,-172.416327,0.00019619,2]
[336483388,1724873446486,-162.16111,0.00019619,2]
[336483389,1724873446497,-162.16111,0.00019619,2]
[336483390,1724873446507,-151.0,0.00019619,2]
[336483391,1724873446517,-151.0,0.00019619,2]
[336483392,1724873446528,-248.499541,0.00019619,2]
[336483393,1724873446538,-151.0,0.0001962,2]
[336483394,1724873446548,-151.0,0.0001962,2]
[336483395,1724873446559,-151.0,0.0001962,2]
[336483396,1724873446568,-151.0,0.0001962,2]
[336483397,1724873446578,-306.101845,0.0001962,2]
[336483398,1724873446588,-306.101845,0.0001962,2]
[336483399,1724873446598,-167.976653,0.0001962,2]
[336483400,1724873446608,-167.976653,0.0001962,2]
[336483401,1724873446620,-10168.0380117,0.00019771,2]
[336483402,1724873446630,-405.72554,0.00019775,2]
[336483403,1724873446640,-405.72554,0.00019775,2]